fUSD/lending_fUSD_20240327
["ID","MTS","AMOUNT","RATE_DAILY","PERIOD"]
[320720278,1711531875168,-151.70631409,0.00055991,120]
[320720279,1711531875177,-151.54545459,0.00055992,120]
[320720280,1711531875187,-157.36286158,0.00055993,120]
[320720281,1711531875195,-150.41241522,0.00056,30]
[320720282,1711531875205,-8039.0,0.00056,30]
[320720283,1711531875214,-5000.0,0.00056,120]
[320720284,1711531875223,-257795.40656931,0.00056,120]
[320720285,1711531875474,-69955.76588055,0.00056,120]
[320720286,1711531875486,-20965.204,0.00056,120]
[320720287,1711531880620,330.6228,0.00019899,2]
[320720289,1711531926748,252.112513,0.00019726,2]
[320720290,1711531930600,252.112513,0.00020548,2]
[320720291,1711531932516,252.112513,0.0002137,2]
[320720292,1711531950095,291.2409014,0.00019899,2]
[320720293,1711531950127,1129.52712583,0.00019899,2]
[320720294,1711531952935,2979.93858727,0.00019899,2]
[320720410,1711532049554,1572.68876657,0.00023,30]
[320720433,1711532493925,-5515.67998838,0.00022999,2]
[320720434,1711532493953,-3513.61339712,0.00023,2]
[320720435,1711532847124,-780.88336166,0.00022893,2]
[320720436,1711532847144,-155.0,0.00022894,2]
[320720437,1711532847165,-155.0,0.00022894,2]
[320720438,1711532847184,-155.0,0.00022895,2]
[320720439,1711532847207,-46.13064528,0.00022895,2]
[320720440,1711532847239,-4913.71778739,0.00022895,2]
[320720441,1711532847261,-258.23861372,0.00022898,2]
[320720442,1711532847282,-156.58282532,0.00022899,2]
[320720443,1711532847302,-150.0,0.00022998,2]
[320720444,1711532847325,-150.0,0.00022998,2]
[320720445,1711532847347,-600.12745253,0.00023,2]
[320720446,1711532969213,-150.0,0.00022999,2]
[320720447,1711532969234,-150.0,0.00022999,2]
[320720448,1711532969256,-205.08846984,0.00022999,2]
[320720450,1711533032196,-94.91153016,0.00022999,2]
[320720451,1711533032206,-2301.18403133,0.00023,2]
[320720452,1711533032219,-670.35804,0.00023,2]
[320720453,1711533032233,-1488.44114622,0.00023,2]
[320720454,1711533032246,-297.14994958,0.00023,2]
[320720455,1711533032277,-2211.62805563,0.00023,2]
[320720456,1711533032290,-3977.33075568,0.00023,2]
[320720457,1711533032303,-24.04076905,0.00023,2]
[320720458,1711533032313,-276.16175604,0.00023,2]
[320720459,1711533032347,-10.86037377,0.00023,2]
[320720460,1711533032357,-150.0,0.00023,2]
[320720461,1711533032370,-150.0,0.00023,2]
[320720462,1711533032382,-150.0,0.00023,2]
[320720463,1711533032391,-150.0,0.00023,2]
[320720464,1711533032400,-135.36811117,0.00023,2]
[320720465,1711533032412,-93.92496882,0.00023,2]
[320720466,1711533032422,-258.2386137,0.00024177,2]
[320720467,1711533032431,-353.00300357,0.00025,2]
[320720468,1711533032441,-1182.1,0.00025298,2]
[320720469,1711533032451,-111.04312377,0.00025299,2]
[320720470,1711533032462,-98.95687623,0.00025299,2]
[320720471,1711533032472,-210.0,0.00025299,2]
[320720473,1711533032481,-258.18312377,0.00025455,2]
[320720495,1711533038098,-0.05548993,0.00025455,2]
[320720496,1711533038108,-673.62,0.00025455,2]
[320720497,1711533038118,-258.2386137,0.00026734,2]
[320720498,1711533038127,-250.0,0.00027,3]
[320720499,1711533038137,-293.0,0.00027829,2]
[320720500,1711533038147,-293.0,0.00027829,2]
[320720501,1711533038157,-316.18,0.00027829,2]
[320720502,1711533038167,-459.55,0.00027829,2]
[320720503,1711533038176,-150.99,0.00027829,2]
[320720504,1711533038186,-258.2386137,0.00028012,2]
[320720505,1711533038195,-300.0,0.00029,3]
[320720506,1711533038205,-559.30829187,0.0002929,2]
[320720507,1711533038215,-258.2386137,0.00029291,2]
[320720508,1711533038225,-258.2386137,0.00030569,2]
[320720509,1711533038235,-350.0,0.00031,3]
[320720510,1711533038244,-176.19,0.00031708,2]
[320720511,1711533038253,-258.2386137,0.00031848,2]
[320720512,1711533038263,-499.99,0.00032587,2]
[320720513,1711533038273,-2227.02,0.00032587,2]
[320720514,1711533038282,-150.99,0.00032587,2]
[320720515,1711533038292,-250.0,0.00032971,110]
[320720516,1711533038301,-250.0,0.00032971,2]
[320720517,1711533038311,-162.73,0.00032997,15]
[320720518,1711533038321,-400.0,0.00033,3]
[320720519,1711533038331,-258.2386137,0.00033126,2]
[320720520,1711533038341,-246.23,0.00033523,10]
[320720521,1711533038352,-200.0,0.00033523,2]
[320720522,1711533038365,-9999.99,0.00033977,2]
[320720523,1711533038374,-155.0,0.00034343,4]
[320720524,1711533038385,-246.23,0.00034344,10]
[320720525,1711533038395,-6663.90384428,0.00034403,4]
[320720526,1711533038407,-1515.59425167,0.00034404,2]
[320720527,1711533038417,-258.2386137,0.00034405,2]
[320720528,1711533038427,-150.0,0.00034548,10]
[320720529,1711533038437,-2751.0,0.00034576,2]
[320720530,1711533038448,-250.0,0.00034604,2]
[320720531,1711533038459,-1684.04,0.00034611,2]
[320720532,1711533038468,-150.0,0.0003491,2]
[320720533,1711533038478,-170.09,0.00034928,2]
[320720534,1711533038487,-467.86,0.00034987,2]
[320720535,1711533038497,-450.0,0.00035,3]
[320720536,1711533038507,-246.23,0.00035166,10]
[320720537,1711533038517,-258.2386137,0.00035683,2]
[320720538,1711533038527,-246.23,0.00035987,10]
[320720539,1711533038537,-246.23,0.00036808,10]
[320720540,1711533038548,-258.2386137,0.00036962,2]
[320720541,1711533038557,-500.0,0.00037,3]
[320720542,1711533038567,-1237.761,0.00037,2]
[320720543,1711533038577,-186.69469355,0.0003753,10]
[320720544,1711533038586,-188.29783765,0.00037619,2]
[320720545,1711533038596,-155.79208871,0.00037628,15]
[320720546,1711533038606,-234.97892157,0.00037628,15]
[320720547,1711533038615,-759246.18182417,0.00037629,4]
[320720548,1711533038630,-6698.72588836,0.00037629,4]
[320720549,1711533039065,-2e-08,0.00037629,4]
[320720550,1711533039078,-704.6316058,0.00037629,4]
[320720551,1711533039091,-785.92464769,0.00037629,4]
[320720552,1711533039104,-669.42707453,0.00037629,4]
[320720553,1711533039116,-8381.80999999,0.00037629,4]
[320720566,1711533040177,-2868.43341692,0.00037629,4]
[320720572,1711533040298,-1914.41247,0.00037629,4]
[320720580,1711533040364,-2449.04082208,0.00037629,4]
[320720586,1711533040431,-728.05842579,0.00037629,4]
[320720587,1711533040443,-861.78488582,0.00037629,4]
[320720588,1711533040457,-4719.33476274,0.00037629,4]
[320720589,1711533040491,-3294.291,0.00037629,4]
[320720600,1711533043234,-2405.14960102,0.00037629,4]
[320720601,1711533043246,-3717.56621638,0.00037629,4]
[320720602,1711533043259,-2986.92251972,0.00037629,4]
[320720603,1711533043271,-87479.97799998,0.00037629,4]
[320720604,1711533043296,-420188.85721586,0.00037629,4]
[320720605,1711533043363,-7132.62907536,0.00037629,4]
[320720606,1711533043377,-40594.20846142,0.00037629,4]
[320720607,1711533043392,-7525.56806573,0.00037629,4]
[320720608,1711533043678,-2047.38919279,0.00037629,4]
[320720630,1711533046228,-691.02049656,0.00037629,4]
[320720631,1711533046290,-1284.1755862,0.00037629,4]
[320720632,1711533046375,-1468.0,0.00037629,4]
[320720633,1711533046433,-0.54995667,0.00037629,4]
[320720634,1711533046445,-3054.89154427,0.00037629,4]
[320720635,1711533046495,-2660.56650249,0.00037629,4]
[320720636,1711533046507,-351.21220248,0.00037629,4]
[320720637,1711533046519,-746.86685854,0.00037629,4]
[320720638,1711533047300,-118843.90436259,0.00037629,4]
[320720639,1711533047393,-32841.11995811,0.00037629,4]
[320720640,1711533047405,-312.14085402,0.00037629,4]
[320720641,1711533047433,-530.45176955,0.00037629,4]
[320720642,1711533047482,-512.6399146,0.00037629,4]
[320720643,1711533047494,-2840.07169956,0.00037629,4]
[320720645,1711533069406,62000.0,0.00018,2]
[320720646,1711533069433,10847695.40350645,0.00018,2]
[320720647,1711533071811,1673.26521226,0.000154,2]
[320720649,1711533081218,527.40543036,9e-05,2]
[320720650,1711533092805,1258.84831319,0.0001,2]
[320720651,1711533116811,27745.07410245,6.94e-05,2]
[320720656,1711533219489,318.33273827,6.94e-05,2]
[320720657,1711533219913,155.14349743,0.00018,2]
[320720658,1711533220692,365.83716599,6.94e-05,2]
[320720659,1711533220773,738.73771562,0.00012,2]
[320720660,1711533221473,250.79423745,6.94e-05,2]
[320720661,1711533222590,155.26162148,6.94e-05,2]
[320720662,1711533223626,406.48055709,0.0001,2]
[320720663,1711533224272,292.17207754,6.94e-05,2]
[320720664,1711533224459,938.37870965,6.94e-05,2]
[320720665,1711533225265,948.9259237,6.593e-05,2]
[320720666,1711533226233,862.28398827,6.94e-05,2]
[320720667,1711533228890,1464.4092569,6.94e-05,2]
[320720668,1711533229638,287.02212981,6.94e-05,2]
[320720669,1711533234116,2617.89763888,6.94e-05,2]
[320720670,1711533236961,6698.43855006,6.94e-05,2]
[320720671,1711533237633,61924.88419186,6.94e-05,2]
[320720672,1711533237659,858222.47582327,6.94e-05,2]
[320720673,1711533239607,407.26774146,0.0001,2]
[320720674,1711533240895,3262470.25987056,0.00018,2]
[320720675,1711533242879,460.41366992,6.94e-05,2]
[320720676,1711533243626,287.02212981,6.94e-05,2]
[320720677,1711533246458,150.0,6.94e-05,2]
[320720678,1711533246480,150.0,6.94e-05,2]
[320720679,1711533246500,150.0,6.94e-05,2]
[320720680,1711533246522,27.69324998,6.94e-05,2]
[320720681,1711533248217,122.30675002,6.94e-05,2]
[320720682,1711533248243,150.0,6.94e-05,2]
[320720683,1711533248267,150.0,6.94e-05,2]
[320720684,1711533248288,150.0,6.94e-05,2]
[320720685,1711533248310,150.0,6.94e-05,2]
[320720686,1711533248331,143.10944343,6.94e-05,2]
[320720687,1711533252042,150.0,6.94e-05,2]
[320720688,1711533252066,150.0,6.94e-05,2]
[320720689,1711533252088,150.0,6.94e-05,2]
[320720690,1711533252110,150.0,6.94e-05,2]
[320720691,1711533252132,150.0,6.94e-05,2]
[320720692,1711533252153,150.0,6.94e-05,2]
[320720693,1711533252177,150.0,6.94e-05,2]
[320720694,1711533252198,150.0,6.94e-05,2]
[320720695,1711533252220,150.0,6.94e-05,2]
[320720696,1711533252242,13.92466986,6.94e-05,2]
[320720697,1711533259553,150.0,6.94e-05,2]
[320720698,1711533259576,150.0,6.94e-05,2]
[320720699,1711533259596,150.0,6.94e-05,2]
[320720700,1711533259616,150.0,6.94e-05,2]
[320720701,1711533259639,150.0,6.94e-05,2]
[320720702,1711533259659,150.0,6.94e-05,2]
[320720703,1711533259679,150.0,6.94e-05,2]
[320720704,1711533259699,150.0,6.94e-05,2]
[320720705,1711533259719,150.0,6.94e-05,2]
[320720706,1711533259739,150.0,6.94e-05,2]
[320720707,1711533259759,150.0,6.94e-05,2]
[320720708,1711533259778,150.0,6.94e-05,2]
[320720709,1711533259799,150.0,6.94e-05,2]
[320720710,1711533259824,150.0,6.94e-05,2]
[320720711,1711533259844,150.0,6.94e-05,2]
[320720712,1711533259864,150.0,6.94e-05,2]
[320720713,1711533259886,150.0,6.94e-05,2]
[320720714,1711533259905,150.0,6.94e-05,2]
[320720715,1711533259926,150.0,6.94e-05,2]
[320720716,1711533259946,150.0,6.94e-05,2]
[320720717,1711533259967,228098.98932831,6.94e-05,2]
[320720718,1711533261634,197.2012671,6.94e-05,2]
[320720719,1711533261656,89.82086271,6.94e-05,2]
[320720720,1711533262581,296.1131679,0.0001,2]
[320720721,1711533268100,150.0,6.94e-05,2]
[320720722,1711533268122,150.0,6.94e-05,2]
[320720723,1711533268145,150.0,6.94e-05,2]
[320720724,1711533268169,150.0,6.94e-05,2]
[320720725,1711533268192,763.92466986,6.94e-05,2]
[320720726,1711533271117,150.0,0.00015,2]
[320720727,1711533271138,210.17913729,0.00015,2]
[320720728,1711533271160,26544.87184614,0.00015,2]
[320720729,1711533281655,169.25481651,6.94e-05,2]
[320720730,1711533285408,198.44287316,0.00015,2]
[320720731,1711533293482,1363.92466986,0.00015,2]
[320720732,1711533298292,-174.31,0.00032933,120]
[320720733,1711533314050,1363.92466986,0.00015,2]
[320720734,1711533334063,1363.92466986,0.00015,2]
[320720735,1711533349568,77061.07533014,0.00015,2]
[320720736,1711533349589,1359.99948068,0.00015,2]
[320720737,1711533350061,1363.92466986,0.00015,2]
[320720738,1711533355350,1031.2102017,0.00015,2]
[320720739,1711533368321,1363.92466986,0.00015,2]
[320720740,1711533373343,375.57059102,0.00015,2]
[320720742,1711533383622,406.48055709,0.0001455,2]
[320720743,1711533384098,1363.92466986,0.00015,2]
[320720744,1711533384973,6698.43855006,0.00015,2]
[320720745,1711533386632,365.83716599,0.00015,2]
[320720746,1711533386742,738.73771562,0.00012,2]
[320720747,1711533388281,862.28398827,0.00015,2]
[320720748,1711533388463,938.37870965,0.00015,2]
[320720749,1711533388992,1464.4092569,0.00015,2]
[320720750,1711533389409,250.79423745,0.00015,2]
[320720751,1711533389762,287.02212981,0.00015,2]
[320720752,1711533390528,155.26162148,0.00015,2]
[320720753,1711533391575,61924.88419186,0.00015,2]
[320720754,1711533394112,292.17207754,0.00015,2]
[320720755,1711533397225,948.9259237,0.0001425,2]
[320720756,1711533397416,318.33273827,0.00015,2]
[320720757,1711533406060,1363.92466986,0.00015,2]
[320720758,1711533424060,1363.92466986,0.00015,2]
[320720759,1711533442061,1363.92466986,0.00015,2]
[320720760,1711533458557,400.0,0.00024772,120]
[320720761,1711533460066,1363.92466986,0.00015,2]
[320720762,1711533476103,1363.92466986,0.00015,2]
[320720763,1711533504083,376.67584911,0.00015,2]
[320720764,1711533637636,176.47876,0.00015068,2]
[320720765,1711533639751,176.47876,0.0001589,2]
[320720766,1711533672522,-158.91607008,0.00016612,2]
[320720767,1711533672546,-268.12795554,0.00016709,2]
[320720768,1711533672570,-523.34916364,0.0001671,2]
[320720769,1711533672593,-1000.0,0.0001671,2]
[320720770,1711533672617,-4556.89776575,0.0001671,2]
[320720771,1711533672642,-406.77867836,0.00016711,2]
[320720772,1711533672666,-155.0,0.00016711,2]
[320720773,1711533672694,-155.0,0.00016711,2]
[320720774,1711533672724,-450.21582317,0.00016711,2]
[320720775,1711533672750,-176.47876,0.00016712,2]
[320720776,1711533672777,-447.5,0.00016881,2]
[320720777,1711533672803,-176.47876,0.00017534,2]
[320720778,1711533672828,-705.17999641,0.00017774,2]
[320720779,1711533672853,-806.5669211,0.00017775,2]
[320720780,1711533672878,-219.00197946,0.00017776,2]
[320720781,1711533672903,-485.65085822,0.00017874,2]
[320720782,1711533672928,-155.0,0.00017874,2]
[320720783,1711533672957,-4959.84843267,0.00017875,2]
[320720784,1711533672981,-10557.61748168,0.00017876,2]
[320720785,1711533673005,-150.0,0.00017879,2]
[320720786,1711533673030,-150.0,0.00017879,2]
[320720787,1711533673053,-1235.12264339,0.00017899,2]
[320720788,1711533673082,-6183.7969,0.000179,2]
[320720789,1711533673106,-838.22531571,0.000179,2]
[320720790,1711533673131,-17079.24649482,0.000179,2]
[320720792,1711533717617,226585.659541,0.0001589,2]
[320720793,1711533726357,155.17726097,0.0001589,2]
[320720794,1711533727017,875.23605126,0.0001589,2]
[320720795,1711533731290,949.37404731,0.00015096,2]
[320720796,1711533732279,300.22579248,0.0001589,2]
[320720797,1711533733444,167.54766992,0.0001589,2]
[320720798,1711533733594,750.0,0.0001589,2]
[320720799,1711533753294,326.01948839,0.00015096,2]
[320720800,1711533777609,-290.6053586,0.00016198,2]
[320720801,1711533777634,-192.27,0.00016712,2]
[320720802,1711533777658,-268.12795554,0.00016917,2]
[320720803,1711533777683,-466.66004612,0.00016918,2]
[320720804,1711533777711,-158.91606996,0.00017371,2]
[320720805,1711533777736,-10275.37326847,0.000179,2]
[320720806,1711533777761,-1423.60916209,0.000179,2]
[320720807,1711533777790,-278.75449595,0.000179,2]
[320720808,1711533777813,-4553.58810145,0.00017982,2]
[320720809,1711533777836,-92.09554182,0.00017998,2]
[320720810,1711533786795,1030.29843897,0.00012,2]
[320720811,1711533804194,-1500.0,0.0001799,2]
[320720812,1711533804234,-155.0,0.00017996,2]
[320720813,1711533804264,-155.0,0.00017996,2]
[320720814,1711533804295,-150.0,0.00017997,2]
[320720815,1711533804320,-150.0,0.00017997,2]
[320720816,1711533804349,-612.30720622,0.00017998,2]
[320720817,1711533804377,-6373.1187303,0.00017998,2]
[320720818,1711533804405,-1000.0,0.00017998,2]
[320720819,1711533804434,-155.0,0.00017998,2]
[320720820,1711533804460,-406.34010617,0.00017998,2]
[320720821,1711533804488,-489.19131062,0.00017998,2]
[320720822,1711533804515,-592.79614395,0.00017998,2]
[320720823,1711533804547,-805.57050906,0.00017998,2]
[320720824,1711533804576,-155.0,0.00017998,2]
[320720825,1711533804606,-2159.0794683,0.00017998,2]
[320720826,1711533804640,-267.45288164,0.00017998,2]
[320720827,1711533804673,-573.81411879,0.00017998,2]
[320720828,1711533804702,-1010.39616778,0.00017999,2]
[320720829,1711533804731,-150.99,0.00017999,2]
[320720830,1711533804758,-499.99,0.00017999,2]
[320720831,1711533804786,-2507.72,0.00017999,2]
[320720832,1711533804814,-46731.23335717,0.00018,2]
[320720833,1711533811621,6310.62052079,0.00015096,2]
[320720834,1711533875441,300.0,0.000179,6]
[320720835,1711533881421,155.0,0.00015096,2]
[320720836,1711533897358,155.0,0.00015096,2]
[320720837,1711533917353,305.98744394,0.00017999,5]
[320720839,1711533988365,-155.0,0.00017891,2]
[320720840,1711533988390,-155.0,0.00017892,2]
[320720841,1711533988414,-155.0,0.00017892,2]
[320720842,1711533988439,-374.60114672,0.00017893,2]
[320720843,1711533988464,-4456.38728953,0.00017894,2]
[320720844,1711533988494,-180.09860931,0.00017894,2]
[320720845,1711533988520,-484.50959772,0.00017895,2]
[320720846,1711533988545,-155.0,0.00017895,2]
[320720847,1711533988570,-670.58025256,0.000179,2]
[320720848,1711533988594,-896.29650286,0.000179,2]
[320720849,1711533988619,-2704.85740789,0.000179,2]
[320720850,1711533988644,-176.19,0.00017965,2]
[320720851,1711533988670,-150.0,0.00017981,2]
[320720852,1711533988696,-150.0,0.00017981,2]
[320720853,1711533988720,-300.0,0.00017981,2]
[320720854,1711533988745,-4555.2429336,0.00017982,2]
[320720855,1711533988771,-164.87034558,0.00017998,2]
[320720856,1711533988795,-155.0,0.00017998,2]
[320720857,1711533988826,-186.99932662,0.00017998,2]
[320720858,1711533988851,-155.34850331,0.00017998,2]
[320720859,1711533988874,-206.83608928,0.00017998,2]
[320720860,1711533988899,-198.88165296,0.00017998,2]
[320720861,1711533988923,-155.12969938,0.00017998,2]
[320720862,1711533988948,-155.0,0.00017998,2]
[320720863,1711533988970,-155.0,0.00017998,2]
[320720864,1711533988998,-386.16261726,0.00017998,2]
[320720865,1711533989022,-299.18533016,0.00017998,2]
[320720866,1711533989046,-155.14444871,0.00017998,2]
[320720867,1711533989070,-406.08005128,0.00017998,2]
[320720868,1711533989094,-155.11630653,0.00017998,2]
[320720869,1711533989122,-155.14249212,0.00017998,2]
[320720870,1711533989148,-155.0,0.00017998,2]
[320720871,1711533989173,-155.48339563,0.00017998,2]
[320720872,1711533989199,-155.1927104,0.00017998,2]
[320720873,1711533989223,-183.86804207,0.00017998,2]
[320720874,1711533989247,-155.0,0.00017998,2]
[320720875,1711533989271,-155.28061758,0.00017998,2]
[320720876,1711533989295,-166.33991027,0.00017998,2]
[320720877,1711533989322,-155.37962598,0.00017998,2]
[320720878,1711533989347,-197.81426473,0.00017998,2]
[320720879,1711533989371,-155.0,0.00017998,2]
[320720880,1711533989396,-187.79767231,0.00017998,2]
[320720881,1711533989419,-453.41483993,0.00017998,2]
[320720882,1711533989450,-1735.29241015,0.00017999,2]
[320720883,1711533989474,-77180.47590757,0.00018,2]
[320720884,1711534016871,523.66152424,0.00017998,7]
[320720885,1711534045327,-155.0,0.00016198,2]
[320720886,1711534045346,-211.69,0.0001697,2]
[320720887,1711534045364,-530.08303492,0.0001789,2]
[320720888,1711534045383,-226.93537449,0.00017998,2]
[320720889,1711534045403,-155.93625809,0.00017998,2]
[320720890,1711534045421,-455.6622179,0.00017998,2]
[320720891,1711534160291,-150.0,0.00017799,2]
[320720892,1711534160312,-300.0,0.00017799,2]
[320720893,1711534160332,-888.42,0.000178,2]
[320720894,1711534162145,-1167.8465956,0.000178,2]
[320720895,1711534172092,-6036.73550538,0.000178,2]
[320720905,1711534232284,-361.10221362,0.00017799,2]
[320720907,1711534232295,-155.0,0.00017799,2]
[320720908,1711534232305,-2763.43165842,0.00017799,2]
[320720909,1711534232318,-1034.73564555,0.00017799,2]
[320720910,1711534232363,-497.48514,0.00017799,2]
[320720911,1711534232374,-318.4,0.00017799,2]
[320720912,1711534232425,-345.7959887,0.00017799,2]
[320720913,1711534232434,-8288.72739902,0.000178,2]
[320720914,1711534232444,-836.54340266,0.000179,2]
[320720915,1711534232453,-24770.05795705,0.000179,2]
[320720916,1711534232463,-207.97893084,0.0001799,2]
[320720917,1711534232472,-156.54222137,0.00017998,2]
[320720918,1711534232482,-155.30642501,0.00017998,2]
[320720919,1711534232492,-155.38639491,0.00017998,2]
[320720920,1711534232501,-1000.0,0.00017998,2]
[320720921,1711534232511,-259.85932158,0.00017998,2]
[320720922,1711534232521,-155.45223297,0.00017998,2]
[320720923,1711534232531,-288.1832685,0.00017998,2]
[320720924,1711534232542,-34672.7035809,0.00017998,2]
[320720925,1711534232551,-643.81349141,0.00017998,2]
[320720926,1711534232561,-236.21243831,0.00017998,2]
[320720927,1711534232571,-1000.0,0.00017999,2]
[320720928,1711534232580,-200.0,0.00017999,2]
[320720929,1711534232589,-209.01652617,0.00017999,2]
[320720930,1711534232598,-181.0703686,0.00017999,2]
[320720931,1711534232609,-281.08037208,0.00017999,2]
[320720932,1711534232619,-3973.96821158,0.00017999,2]
[320720933,1711534232629,-715738.23552641,0.00018,2]
[320720934,1711534232640,-155.14349743,0.00018,2]
[320720935,1711534232649,-158.91606996,0.0001813,2]
[320720936,1711534232659,-158.91606996,0.00018889,2]
[320720937,1711534232669,-830.76,0.00018973,2]
[320720938,1711534232678,-272.15,0.00019092,2]
[320720940,1711534232687,-499.99,0.00019145,2]
[320720942,1711534232697,-1770.97,0.00019145,2]
[320720944,1711534232707,-499.99,0.00019145,2]
[320720946,1711534232716,-150.99,0.00019145,2]
[320720948,1711534232725,-500.0,0.00019178,2]
[320720950,1711534232735,-410.25250027,0.00019178,2]
[320720952,1711534232745,-234.98173619,0.00019178,2]
[320720954,1711534232755,-155.79208871,0.00019178,2]
[320720956,1711534232768,-210.0,0.00019579,2]
[320720958,1711534232777,-180.0,0.00019579,2]
[320720959,1711534232787,-158.91606996,0.00019647,2]
[320720960,1711534232796,-531.81,0.00019779,2]
[320720961,1711534232807,-1239.97598968,0.00019989,2]
[320720962,1711534232818,-288.84864335,0.0002,2]
[320720963,1711534232829,-155.0,0.0002,2]
[320720964,1711534232840,-500.0,0.00020282,2]
[320720965,1711534232850,-158.91606996,0.00020406,2]
[320720966,1711534232860,-170.18,0.00020473,2]
[320720967,1711534232869,-3079.78,0.0002053,2]
[320720968,1711534232879,-200.0,0.00020723,2]
[320720969,1711534232889,-200.0,0.00020773,2]
[320720970,1711534232901,-385.61,0.00020773,2]
[320720971,1711534232910,-500.0,0.00020791,2]
[320720972,1711534232920,-180.0,0.00020862,2]
[320720973,1711534232930,-2104.52,0.00020865,2]
[320720974,1711534232939,-150.0,0.0002089,2]
[320720975,1711534232949,-300.0,0.000209,7]
[320720976,1711534232958,-416.64,0.00020952,2]
[320720977,1711534232967,-10688.4,0.00020979,2]
[320720978,1711534232977,-200.0,0.00020979,2]
[320720979,1711534232987,-6281.38,0.00020996,2]
[320720980,1711534232996,-710.99490935,0.00020999,2]
[320720981,1711534233007,-804.85245616,0.00021,2]
[320720982,1711534233016,-174.31,0.00021009,2]
[320720983,1711534233025,-416.64,0.00021009,2]
[320720984,1711534233035,-2315.32,0.00021059,2]
[320720985,1711534233045,-250.0,0.00021059,2]
[320720986,1711534233055,-250.0,0.00021064,2]
[320720987,1711534233064,-416.64,0.00021067,2]
[320720988,1711534233073,-836.54340258,0.00021078,2]
[320720989,1711534233083,-8200.19,0.00021079,2]
[320720990,1711534233092,-300.51,0.0002109,2]
[320720991,1711534233101,-416.64,0.00021124,2]
[320720992,1711534233112,-158.91606996,0.00021165,2]
[320720993,1711534233122,-416.64,0.00021182,2]
[320720994,1711534233133,-830.76,0.00021236,2]
[320720995,1711534233144,-416.64,0.00021239,2]
[320720996,1711534233153,-416.64,0.00021297,2]
[320720997,1711534233162,-416.64,0.00021354,2]
[320720998,1711534233172,-416.64,0.00021411,2]
[320720999,1711534233181,-416.64,0.00021469,2]
[320721000,1711534233191,-416.64,0.00021526,2]
[320721001,1711534233200,-288.0,0.00021537,2]
[320721002,1711534233210,-416.64,0.00021584,2]
[320721003,1711534233219,-416.64,0.00021641,2]
[320721004,1711534233229,-416.64,0.00021699,2]
[320721005,1711534233239,-213.36,0.00021733,2]
[320721006,1711534233249,-416.64,0.00021756,2]
[320721007,1711534233260,-5957.31,0.0002177,2]
[320721008,1711534233269,-416.64,0.00021814,2]
[320721009,1711534233279,-2704.85740788,0.00021859,2]
[320721010,1711534233288,-24770.05795702,0.00021859,2]
[320721011,1711534233298,-416.64,0.00021871,2]
[320721012,1711534233308,-250.0,0.00021918,2]
[320721013,1711534233318,-158.91606996,0.00021924,2]
[320721014,1711534233328,-416.64,0.00021929,2]
[320721015,1711534233337,-1580.69248,0.0002198,2]
[320721016,1711534233348,-416.64,0.00021986,2]
[320721017,1711534233358,-644.17906747,0.00022,2]
[320721018,1711534233369,-780.88336166,0.00022,2]
[320721019,1711534233378,-4477.2428224,0.00022,2]
[320721020,1711534233388,-416.64,0.00022043,2]
[320721021,1711534233400,-23900.0,0.00022142,2]
[320721022,1711534233410,-1580.69249,0.0002228,2]
[320721023,1711534233420,-489.69,0.00022308,2]
[320721024,1711534233430,-6672.63,0.00022358,2]
[320721025,1711534233440,-500.0,0.00022379,2]
[320721026,1711534233449,-273.67,0.00022425,2]
[320721027,1711534233460,-1374.26,0.00022486,2]